[Event "Super United Croatia GCT Blitz 2022"]
[Site "Zagreb"]
[Date "2022.07.24"]
[Round "15"]
[White "Firouzja, Alireza"]
[Black "Mamedyarov, Shakhriyar"]
[Result "1-0"]
[ECO "C42"]
[WhiteElo "2793"]
[BlackElo "2759"]
[Annotator "TA"]
[PlyCount "85"]
[EventDate "2022.07.20"]
[EventType "tourn"]
[EventCountry "CRO"]
[SourceTitle "playchess.com"]
[Source "ChessBase"]
[SourceQuality "1"]
[TimeControl "300+2"]

{[%evp 16,85,44,45,49,45,47,48,52,48,41,43,48,20,27,25,88,0,10,0,17,1,49,41,43,44,50,52,41,46,45,41,47,23,58,50,79,75,76,76,89,75,83,77,72,72,109,113,97,78,85,81,97,35,89,41,133,37,37,34,34,35,28,37,93,60,185,185,554,554,29972,2282]} 1. e4 {[%emt 0:00:01]} e5 {[%emt 0:00:32]} 2. Nf3 {[%emt 0:00:02]} Nf6 {[%emt 0:00:01]} 3. Nxe5 {[%emt 0:00:01]} d6 {[%emt 0:00:01]} 4. Nf3 {[%emt 0:00:01]} Nxe4 {[%emt 0:00:01]} 5. d4 {[%emt 0:00:01]} d5 {[%emt 0:00:01]} 6. Bd3 {[%emt 0:00:02]} Be7 {[%emt 0:00:02]} 7. O-O {[%emt 0:00:05]} Bf5 {[%emt 0:00:01]} 8. Re1 {[%emt 0:00:27]} Nc6 {[%emt 0:00:11]} 9. Nbd2 $1 {[%emt 0:00:28][%mdl 4] is more profitable than 9.c4 at the moment.} Nxd2 {[%emt 0:00:03] C42: Petroff Defence: 3 Nxe5 and unusual White 3rd moves.} 10. Qxd2 {[%emt 0:00:00]} (10. Bxf5 Nxf3+ 11. gxf3 (11. Qxf3 Nxd4 12. Qh5 Nxf5 $15) 11... O-O $11) 10... Bg6 {[%emt 0:00:03]} 11. Bb5 {[%emt 0:00:27]} O-O {[%emt 0:00:47] White is slightly better.} 12. Bxc6 {[%emt 0:00:01]} bxc6 {[%emt 0:00:01] [#]} 13. Qc3 $146 {[%emt 0:00:02] Against c5} ({Predecessor:} 13. Ne5 Qd6 14. Qa5 Rfb8 15. Qc3 Rb6 16. Bf4 Bf8 17. Qg3 Qb4 18. Nd7 Rb7 19. h4 {1-0 (35) Boehnke,H (2197)-Vuillemin,G (2064) ICCF email 2019}) 13... Bd6 {[%emt 0:01:18]} 14. Qxc6 {[%emt 0:00:02]} Be4 {[%emt 0:00:01]} 15. Ng5 {[%emt 0:01:21]} Qf6 {[%emt 0:00:03]} (15... Bg6 $11) 16. Qc3 {[%emt 0:00:18]} (16. g3 $16) 16... Bg6 {[%emt 0:00:04]} 17. Bd2 {[%emt 0:00:07]} Rab8 {[%emt 0:00:10]} 18. a3 {[%emt 0:00:04] Against Bb4} h6 {[%emt 0:00:12]} (18... Rb6 $11) 19. Nf3 $14 {[%emt 0:00:01]} Be4 {[%emt 0:00:02]} 20. Ne5 {[%emt 0:00:10]} Bxe5 {[%emt 0:00:30]} ({Much less strong is} 20... c5 21. Nd7 Qxd4 22. b4 $16 (22. Nxf8 Bxf8 23. b4 Qxc3 $16) (22. Nxb8 Rxb8 23. b4 Qxc3 $16)) 21. dxe5 {[%emt 0:00:02]} Qg6 {[%emt 0:00:00][%csl Ge4,LRc2,LRg2][%cal Rg6g2] [#]} 22. f3 {[%emt 0:00:03][%cal Bf2f3,Bf3f4][%mdl 32]} Bxc2 {[%emt 0:00:01]} 23. b4 {[%emt 0:00:07]} Rfc8 {[%emt 0:00:14][%cal Oc7c5]} 24. Be3 {[%emt 0:00:30]} a6 {[%emt 0:00:02][%cal Oa6a5]} 25. Rac1 {[%emt 0:00:09]} Ba4 {[%emt 0:00:05]} 26. Bd4 {[%emt 0:00:07]} c6 {[%emt 0:00:02]} 27. f4 {[%emt 0:00:02]} Re8 {[%emt 0:00:07]} 28. Re3 {[%emt 0:00:18][%cal Oe5e6] Threatens to win with e6!} Qf5 {[%emt 0:00:03]} 29. Rf1 {[%emt 0:00:04]} Bb5 {[%emt 0:00:06]} 30. Rf2 {[%emt 0:00:02]} Bc4 {[%emt 0:00:02][%cal Oa6a5]} 31. h3 {[%emt 0:00:01]} a5 {[%emt 0:00:00]} 32. Kh2 {[%emt 0:00:27]} axb4 {[%emt 0:00:15]} 33. axb4 {[%emt 0:00:01]} Rb7 {[%emt 0:00:10]} 34. Rg3 {[%emt 0:00:16]} ({White should play} 34. Qe1 $16) 34... Re6 {[%emt 0:00:15]} ({Black should try} 34... Kh7 $14) 35. Qa3 {[%emt 0:00:05]} ({Better is} 35. Qa1 $16 {aiming for Qa8+.} Re8 36. Bc5) 35... Kh7 {[%emt 0:00:15]} (35... Re8 $14) 36. Re3 {[%emt 0:00:01]} (36. Qa8 $16 Rbe7 37. Qf8) 36... h5 $1 {[%emt 0:00:07]} 37. Rg3 {[%emt 0:00:03]} Rg6 {[%emt 0:00:02] Inhibits Rg5.} 38. Rxg6 {[%emt 0:00:11]} fxg6 {[%emt 0:00:01]} 39. Bc5 {[%emt 0:00:03]} h4 {[%emt 0:00:15]} (39... Qe4 $14) 40. Qf3 {[%emt 0:00:02]} Rf7 {[%emt 0:00:03] [#]} (40... Kg8 $14) 41. Qg4 $1 $18 {[%emt 0:00:02]} g5 $2 {[%emt 0:00:03]} (41... Kg8 {is a better chance.} 42. e6 (42. Qxh4 g5 $16) 42... Rb7) 42. e6 {[%emt 0:00:02]} Rf6 {[%emt 0:00:04]} 43. Qxf5+ {[%emt 0:00:03] Weighted Error Value: White=0.15 (very precise) /Black=0.45} 1-0

[Event "Super United Croatia GCT Blitz 2022"]
[Site "Zagreb"]
[Date "2022.07.24"]
[Round "15"]
[White "So, Wesley"]
[Black "Saric, Ivan"]
[Result "1-0"]
[ECO "A36"]
[WhiteElo "2773"]
[BlackElo "2680"]
[Annotator "TA"]
[PlyCount "73"]
[EventDate "2022.07.20"]
[EventType "tourn"]
[EventCountry "CRO"]
[SourceTitle "playchess.com"]
[Source "ChessBase"]
[SourceQuality "1"]
[TimeControl "300+2"]

{[%evp 9,73,8,37,33,31,33,48,31,52,41,51,57,84,57,120,120,154,148,189,163,193,179,204,129,127,71,110,66,162,159,156,167,207,200,391,385,396,389,355,212,249,244,392,456,509,525,506,506,839,422,464,441,425,254,213,220,481,463,543,520,29986,29968,5998,5314,29986,29987]} 1. c4 {[%emt 0:00:01]} g6 {[%emt 0:00:01]} 2. g3 {[%emt 0:00:07]} Bg7 {[%emt 0:00:01]} 3. Bg2 {[%emt 0:00:01]} c5 {[%emt 0:00:02]} 4. Nc3 {[%emt 0:00:02]} Nc6 {[%emt 0:00:01]} 5. e3 {[%emt 0:00:04][%cal Be2e3,Be3e4][%mdl 32]} Bxc3 {[%emt 0:00:09]} 6. dxc3 {[%emt 0:00:07] A36: Symmetrical English vs ...g6: 4 Bg2 Bg7.} d6 {[%emt 0:00:02]} 7. e4 {[%emt 0:00:05]} Qd7 {[%emt 0:00:08] [#]} 8. a4 $146 {[%emt 0:00:35] White is slightly better.} ({Predecessor:} 8. h3 b6 9. f4 Bb7 10. Be3 O-O-O 11. Nf3 f5 12. exf5 gxf5 13. Qc2 Nf6 14. O-O-O {1-0 (48) Carlstedt,J (2442)-Pavlovic,M (2481) Berlin 2015}) 8... b6 {[%emt 0:00:22]} 9. Nf3 {[%emt 0:00:02][%cal Oe4e5,Bg1f3,Bf3e1,Be1c2][%mdl 32]} Bb7 {[%emt 0:00:04]} 10. O-O {[%emt 0:00:02]} e5 {[%emt 0:00:10]} 11. Ne1 {[%emt 0:00:10]} a5 {[%emt 0:00:14]} (11... Na5 $14) 12. Nc2 $16 {[%emt 0:00:01]} Nge7 {[%emt 0:00:26]} 13. Bh6 {[%emt 0:00:15]} Rg8 {[%emt 0:00:36]} 14. Bg5 {[%emt 0:00:19] A strong pair of Bishops.} O-O-O {[%emt 0:00:11]} 15. b4 {[%emt 0:00:21]} Qe6 {[%emt 0:00:14]} 16. bxc5 {[%emt 0:00:09]} (16. b5 $6 Na7 $16) 16... dxc5 {[%emt 0:00:13] [#]} 17. Qe2 {[%emt 0:00:07]} (17. Qf3 h6 18. Bxe7 Nxe7 $14) ({White should try} 17. Qb1 $1 {[%cal Rb1b6]} h6 18. Bc1) 17... f6 {[%emt 0:00:02]} 18. Bc1 {[%emt 0:00:19]} f5 {[%emt 0:00:40]} (18... Kb8 $14) 19. Rb1 $18 {[%emt 0:00:20] Black must now prevent exf5.} Nb8 {[%emt 0:00:08][%cal Of5f4]} 20. Bg5 {[%emt 0:00:13] Inhibits f4.} Nd7 {[%emt 0:00:10]} 21. Ne3 {[%emt 0:00:05]} Nf6 $2 {[%emt 0:01:07]} (21... fxe4 22. Nd5 Nxd5 23. cxd5 Bxd5) 22. Nd5 {[%emt 0:00:45]} Nexd5 {[%emt 0:00:04]} 23. cxd5 {[%emt 0:00:11]} (23. exd5 Qd6 $16) 23... Qd6 24. Qc2 {[%emt 0:00:21]} (24. Qb5 $142) 24... fxe4 {[%emt 0:00:12]} 25. Rb2 {[%emt 0:00:18]} Rdf8 {[%emt 0:00:09]} (25... Bxd5 $2 26. Rfb1 h6 27. Rxb6 hxg5 28. Rxd6 Rxd6 29. Rb5 $18) (25... Kc7 {was necessary.} 26. Rfb1 Nxd5) 26. c4 {[%emt 0:00:01] Bh3+ is the strong threat.} ({Less strong is} 26. Rfb1 Nxd5 27. Qxe4 (27. Bxe4 Qe6 $16) 27... Qd7 $18) 26... Kc7 {[%emt 0:00:10]} 27. Rfb1 {[%emt 0:00:10]} Nd7 {[%emt 0:00:01]} 28. Qxe4 {[%emt 0:00:01][%cal Og5e7] Threatens to win with Be7!} Rf5 {[%emt 0:00:08]} (28... Ba6 $142 29. Bh3 Rf5) 29. Bd2 {[%emt 0:00:01][%cal Od2a5] Strongly threatening Bxa5!} Ba6 {[%emt 0:00:03]} 30. Bh3 {[%emt 0:00:06]} Rgf8 {[%emt 0:00:02]} 31. Bxf5 {[%emt 0:00:11]} (31. f4 $142) 31... gxf5 {[%emt 0:00:01]} 32. Qh4 {[%emt 0:00:04]} Rb8 $2 {[%emt 0:00:07]} (32... h6 33. f3 (33. Bxh6 Rh8 $17) 33... f4) 33. Qxh7 {[%emt 0:00:09]} Bxc4 {[%emt 0:00:01] [#]} 34. Bxa5 $1 {[%emt 0:00:01][%mdl 512]} Bd3 {[%emt 0:00:04]} (34... Qxd5 $18 35. Rxb6 Rxb6 36. Bxb6+ (36. Qxf5 $2 Bd3 $19) 36... Kc6) (34... Kc8 35. Qxf5) 35. Bxb6+ {[%emt 0:00:07]} Rxb6 {[%emt 0:00:06]} 36. Rxb6 {[%emt 0:00:02] White wants to mate with Rb7+.} Qxd5 {[%emt 0:00:02]} 37. Rb7+ {[%emt 0:00:02] Weighted Error Value: White=0.39/Black=0.86} 1-0

[Event "Super United Croatia GCT Blitz 2022"]
[Site "Zagreb"]
[Date "2022.07.24"]
[Round "15"]
[White "Topalov, Veselin"]
[Black "Dominguez Perez, Leinier"]
[Result "1-0"]
[ECO "A33"]
[WhiteElo "2728"]
[BlackElo "2754"]
[Annotator "TA"]
[PlyCount "59"]
[EventDate "2022.07.20"]
[EventType "tourn"]
[EventCountry "CRO"]
[SourceTitle "playchess.com"]
[Source "ChessBase"]
[SourceQuality "1"]
[TimeControl "300+2"]

{[%evp 12,59,0,2,18,5,19,19,20,-3,0,-36,-39,-26,-59,-30,0,0,-53,-28,161,154,136,130,137,133,941,591,579,592,590,580,560,545,512,520,729,735,729,727,934,900,960,826,1477,1450,29972,29973,29974,9359]} 1. c4 {[%emt 0:00:02]} c5 {[%emt 0:00:01]} 2. Nf3 {[%emt 0:00:03]} Nf6 {[%emt 0:00:01]} 3. Nc3 {[%emt 0:00:03]} Nc6 {[%emt 0:00:02]} 4. d4 {[%emt 0:00:01]} cxd4 {[%emt 0:00:01]} 5. Nxd4 {[%emt 0:00:01]} e6 {[%emt 0:00:01]} 6. a3 {[%emt 0:00:00]} Be7 {[%emt 0:00:04]} 7. e4 {[%emt 0:00:03]} O-O {[%emt 0:00:04] A33: Symmetrical English: 2 Nf3 Nf6 3 d4 cxd4 4 Nxd4 e6 5 Nc3 Nc6.} 8. Nf3 {[%emt 0:00:03]} Qa5 {[%emt 0:00:01]} 9. Bd3 {[%emt 0:00:03]} d5 {[%emt 0:00:03] The position is equal.} 10. O-O {[%emt 0:00:02] Black must now prevent cxd5.} d4 {[%emt 0:00:11] [#]} 11. b4 $5 $146 {[%emt 0:00:01][%mdl 8] New and interesting.} ({Predecessor:} 11. Ne2 e5 12. Bd2 Qc7 13. b4 b6 14. Rb1 Bb7 15. Ng3 Nd8 16. Qe2 Re8 17. Ng5 h6 18. Nh3 Ne6 19. Nf5 Bf8 20. Qf3 Qd8 21. Rfe1 Kh7 22. Ng3 {½-½ (22) Berkes,F (2659)-Stevic,H (2606) Schwarzach 2015}) 11... Nxb4 {[%emt 0:02:12]} 12. axb4 {[%emt 0:00:02]} Qxa1 {[%emt 0:00:02]} 13. Nb5 {[%emt 0:00:01]} a6 {[%emt 0:00:52]} 14. Nc7 {[%emt 0:00:51] e5 is the strong threat.} Rb8 {[%emt 0:00:02]} 15. e5 $1 {[%emt 0:00:02] Strongly threatening Ng5.} Ne8 $2 {[%emt 0:00:01]} (15... Bxb4 16. exf6 g6 17. Qe2 $16) (15... Nd7 $11 {and Black is okay.} 16. Bxh7+ Kxh7 17. Qc2+ Kg8) 16. Nxe8 $18 {[%emt 0:00:57]} Rxe8 {[%emt 0:00:01] [#]} 17. Qc2 $1 {[%emt 0:00:25] White is more active.} Bd7 {[%emt 0:00:35]} (17... Bxb4 18. Bxh7+ Kf8 19. Qe4 $11) 18. Bxh7+ {[%emt 0:00:11]} Kh8 $2 {[%emt 0:00:02][%mdl 8192] This costs Black the game.} (18... Kf8 $16) 19. Bg5 {[%emt 0:00:36]} Qc3 {[%emt 0:01:01] [#] Hoping for ...Bc6.} 20. Qe4 {[%emt 0:00:01] Threatening mate with Qh4.} Qxf3 {[%emt 0:00:08]} 21. Qxf3 {[%emt 0:00:06] aiming for Bxe7.} ({Not} 21. gxf3 Bxg5 22. Qg4 (22. Qxd4 Red8 $16) 22... Kxh7 $16) 21... Bxg5 {[%emt 0:00:03]} 22. Qxf7 {[%emt 0:00:21]} Kxh7 {[%emt 0:00:05]} 23. Qxd7 {[%emt 0:00:01]} Rbd8 {[%emt 0:00:05]} 24. Qxb7 {[%emt 0:00:01]} d3 {[%emt 0:00:03]} 25. h4 {[%emt 0:00:11]} Bh6 {[%emt 0:00:07]} 26. Rd1 {[%emt 0:00:07]} d2 {[%emt 0:00:01]} 27. Qe4+ {[%emt 0:00:03]} Kh8 {[%emt 0:00:01]} 28. g4 {[%emt 0:00:03]} g6 {[%emt 0:00:04]} 29. Qxg6 {[%emt 0:00:12]} Bg7 {[%emt 0:00:01] [#]} 30. Rxd2 $3 {[%emt 0:00:01][%mdl 512] Weighted Error Value: White=0.23 (precise) /Black=0.61} 1-0

[Event "Super United Croatia GCT Blitz 2022"]
[Site "Zagreb"]
[Date "2022.07.24"]
[Round "15"]
[White "Van Foreest, Jorden"]
[Black "Vachier-Lagrave, Maxime"]
[Result "0-1"]
[ECO "D27"]
[WhiteElo "2678"]
[BlackElo "2760"]
[Annotator "TA"]
[PlyCount "124"]
[EventDate "2022.07.20"]
[EventType "tourn"]
[EventCountry "CRO"]
[SourceTitle "playchess.com"]
[Source "ChessBase"]
[SourceQuality "1"]
[TimeControl "300+2"]

{[%evp 15,124,-7,-8,-40,31,33,60,56,40,45,227,226,359,245,271,267,258,267,255,52,44,0,0,0,0,0,0,0,0,0,0,-10,122,0,0,-31,-29,-97,-64,-104,-110,-106,-108,-108,-89,-126,-76,-66,-50,-119,-67,-101,-112,-135,-153,-171,-130,-131,-112,-574,-567,-565,-567,-568,-568,-536,-553,-979,-611,-579,-572,-554,-565,-702,-702,-668,-663,-838,-805,-780,-779,-872,-580,-455,-325,-756,-764,-851,-832,-761,-618,-1014,-752,-666,-718,-650,-600,-12832,-613,-708,-682,-1285,-1160,-1766,-1910,-1729,-1949,-1789,-1747,-12847,-12848]} 1. d4 {[%emt 0:00:01]} d5 {[%emt 0:00:01]} 2. c4 {[%emt 0:00:01]} dxc4 {[%emt 0:00:01]} 3. Nf3 {[%emt 0:00:01]} Nf6 {[%emt 0:00:01]} 4. e3 {[%emt 0:00:02][%cal Be2e3,Be3e4,Be4e5][%mdl 32]} e6 {[%emt 0:00:01]} 5. Bxc4 {[%emt 0:00:01]} a6 {[%emt 0:00:01]} 6. O-O {[%emt 0:00:05]} c5 {[%emt 0:00:01]} 7. e4 {[%emt 0:00:04]} b5 {[%emt 0:00:10]} 8. Bd3 {[%emt 0:00:01]} Bb7 {[%emt 0:00:09]} 9. Nc3 {[%emt 0:00:31] D27: Queen's Gambit Accepted: Classical main line: 7 e4!? and 7 a4.} c4 $5 {[%emt 0:00:35][%mdl 4] A promising side line.} (9... Nc6 10. d5 Nb4 11. Bg5 $11) (9... cxd4 $15 10. Ne2 (10. Nxd4 Nbd7 $15) 10... Nbd7) 10. Bc2 $14 {[%emt 0:00:05][%cal Od4d5]} b4 {[%emt 0:00:01]} 11. e5 {[%emt 0:00:11] White is slightly better.} (11. Ba4+ Nbd7 12. e5 bxc3 $11) 11... Nd5 {[%emt 0:00:18]} 12. Ne4 {[%emt 0:00:09] [#]} Nd7 $146 {[%emt 0:00:13]} (12... Nc6 $14) ({Predecessor:} 12... h6 13. Nfd2 Nb6 14. Nc5 Bd5 15. Nde4 N8d7 16. Qg4 Qc7 17. Be3 Qc6 {1-0 (37) Eriksson,J (2447)-Akesson,J (2375) Sweden 2007}) 13. Nfg5 $1 $18 {[%emt 0:00:05] Threatens to win with Qf3.} Be7 {[%emt 0:00:21]} (13... N7b6 $142 14. Qh5 g6) 14. Qh5 {[%emt 0:00:09][%csl Gg5][%cal Rh5f7]} g6 {[%emt 0:00:03]} 15. Qh6 {[%emt 0:00:07]} Qb6 {[%emt 0:00:20]} 16. Qg7 {[%emt 0:00:17]} Rf8 {[%emt 0:00:14]} 17. Nxh7 {[%emt 0:00:02]} (17. Ba4 $18) 17... Qxd4 $14 {[%emt 0:00:01]} 18. Bg5 {[%emt 0:00:16]} Qxe5 {[%emt 0:00:04]} 19. Qxe5 {[%emt 0:00:19]} Nxe5 {[%emt 0:00:01]} 20. Ba4+ {[%emt 0:00:08]} Bc6 {[%emt 0:00:06]} 21. Bxc6+ {[%emt 0:00:01]} Nxc6 {[%emt 0:00:01]} 22. Nxf8 {[%emt 0:00:01]} Kxf8 {[%emt 0:00:09]} 23. Rac1 {[%emt 0:00:02]} f5 {[%emt 0:00:13] [#]} (23... Bxg5 $11 {remains equal.} 24. Nxg5 c3) 24. Bxe7+ {[%emt 0:00:19]} ({Weaker is} 24. Rxc4 Ne5 25. Bh6+ Kf7 $15) (24. Nc5 $1 $16 {[%mdl 512]}) 24... Kxe7 $11 {[%emt 0:00:01]} 25. Nd2 {[%emt 0:00:00]} c3 {[%emt 0:00:01]} 26. bxc3 {[%emt 0:00:08]} (26. Nf3 $11) 26... bxc3 $17 {[%emt 0:00:01] And now ...Nd4 would win.} 27. Nb3 {[%emt 0:00:41] Prevents Nd4.} (27. Nb1 $2 Nd4 28. Rfe1 (28. Nxc3 $2 Nxc3 29. Kh1 Nxa2 $19) 28... Rc8 $17) 27... Ncb4 $1 {[%emt 0:00:10][%mdl 1024] Black has strong compensation.} 28. a3 {[%emt 0:00:08]} Nd3 {[%emt 0:00:02]} 29. Rcd1 {[%emt 0:00:16] [#]} Nb2 {[%emt 0:00:09]} 30. Rc1 {[%emt 0:00:04]} Rc8 {[%emt 0:00:08]} ({Better is} 30... e5 {...Rb8 is the strong threat.} 31. Rc2 Rb8) 31. Rc2 {[%emt 0:00:07]} e5 {[%emt 0:00:13] Prevents Nd4.} (31... Nc4 $5 {[%cal Rc8b8]}) 32. Rfc1 {[%emt 0:00:20]} ({White should try} 32. Nc1 $15) 32... Kd6 {[%emt 0:00:08]} (32... Nd3 $17 33. Rd1 e4) 33. Kf1 {[%emt 0:00:10]} Rc4 {[%emt 0:00:26]} 34. Rb1 {[%emt 0:00:04]} Ra4 {[%emt 0:00:11]} 35. Nd2 {[%emt 0:00:08]} Nd3 {[%emt 0:00:13]} ({Much less strong is} 35... Rxa3 36. Rcxb2 cxd2 37. Rxd2 $16) 36. Rb3 {[%emt 0:00:01]} Rf4 $36 {[%emt 0:00:23][%mdl 2048] White is under strong pressure. Black is much more active.} 37. Nb1 $2 {[%emt 0:01:05][%mdl 8192]} (37. Nf3 $17 {was the crucial defense.}) 37... Ne3+ $19 {[%emt 0:00:05] Pair of Knights!} 38. Ke2 {[%emt 0:00:00]} Nxc2 {[%emt 0:00:02]} 39. Kxd3 {[%emt 0:00:01][%mdl 4096] Endgame KRN-KRN} Nd4 {[%emt 0:00:12] ( -> ...c2)} 40. Rxc3 {[%emt 0:00:07]} Rxf2 {[%emt 0:00:01]} 41. Nd2 {[%emt 0:00:02]} Rxg2 {[%emt 0:00:16]} 42. Rc8 {[%emt 0:00:02]} Rxh2 {[%emt 0:00:04]} 43. Nc4+ {[%emt 0:00:00]} Kd7 {[%emt 0:00:06]} 44. Rg8 {[%emt 0:00:04]} Rh3+ {[%emt 0:00:02]} 45. Kd2 {[%emt 0:00:01]} Nf3+ {[%emt 0:00:03]} 46. Kc3 {[%emt 0:00:01]} g5 {[%emt 0:00:02]} 47. Kb4 {[%emt 0:00:01]} e4 {[%emt 0:00:05]} 48. Kc5 {[%emt 0:00:01]} Ke6 {[%emt 0:00:08]} 49. Rg6+ {[%emt 0:00:03]} Ke7 {[%emt 0:00:06]} 50. Nd6 $2 {[%emt 0:00:01]} (50. Kd5 Nh4 51. Re6+ Kf8 52. Ke5) 50... Nh4 {[%emt 0:00:03] Black is clearly winning.} 51. Rxg5 {[%emt 0:00:06]} Rc3+ {[%emt 0:00:01]} 52. Kb4 {[%emt 0:00:00]} Rf3 {[%emt 0:00:04]} 53. Nc4 {[%emt 0:00:04]} Kf6 {[%emt 0:00:02] Inhibits Rg7.} 54. Rg8 {[%emt 0:00:01]} e3 {[%emt 0:00:04]} 55. Rf8+ {[%emt 0:00:02]} Kg5 {[%emt 0:00:01] Strongly threatening ...e2.} 56. Kc3 {[%emt 0:00:01]} f4 {[%emt 0:00:07]} (56... e2+ $142 57. Kd2 {[#]} Rc3 $3 {[%mdl 512]} 58. Rg8+ Kf4 59. Kxe2 Rxc4) 57. Rg8+ {[%emt 0:00:01]} Kf6 {[%emt 0:00:02]} 58. Rf8+ {[%emt 0:00:01]} Ke7 {[%emt 0:00:01]} 59. Rg8 {[%emt 0:00:03]} Nf5 {[%emt 0:00:03]} 60. Kd3 {[%emt 0:00:00]} Rf2 {[%emt 0:00:01] White must now prevent ...e2.} 61. Rg1 {[%emt 0:00:06]} e2 {[%emt 0:00:03] Hoping for ...Rf1.} 62. Ke4 {[%emt 0:00:01]} Rf1 {[%emt 0:00:01] Weighted Error Value: White=0.56/Black=0.39} 0-1

[Event "Super United Croatia GCT Blitz 2022"]
[Site "Zagreb"]
[Date "2022.07.24"]
[Round "16"]
[White "Nepomniachtchi, Ian"]
[Black "Van Foreest, Jorden"]
[Result "1-0"]
[ECO "E60"]
[WhiteElo "2766"]
[BlackElo "2678"]
[Annotator "TA"]
[PlyCount "67"]
[EventDate "2022.07.20"]
[EventType "tourn"]
[EventCountry "CRO"]
[SourceTitle "playchess.com"]
[Source "ChessBase"]
[SourceQuality "1"]
[TimeControl "300+2"]

{[%evp 11,67,39,36,31,30,37,47,48,45,36,41,18,12,16,20,-3,2,0,1,10,33,22,45,27,40,33,60,75,58,18,18,12,20,15,19,0,0,0,14,6,39,54,64,71,70,78,69,66,56,66,195,195,195,188,522,495,434,100]} 1. c4 {[%emt 0:00:01]} Nf6 {[%emt 0:00:01]} 2. g3 {[%emt 0:00:02]} g6 {[%emt 0:00:03]} 3. Bg2 {[%emt 0:00:03]} Bg7 {[%emt 0:00:01]} 4. d4 {[%emt 0:00:03]} O-O {[%emt 0:00:03]} 5. Nf3 {[%emt 0:00:01]} d6 {[%emt 0:00:02]} 6. O-O {[%emt 0:00:04]} Bf5 {[%emt 0:00:03]} 7. b3 {[%emt 0:00:04] E60: King's Indian: Unusual lines and Fianchetto Variation without Nc3.} Nc6 {[%emt 0:00:35]} 8. Bb2 {[%emt 0:00:07]} a5 {[%emt 0:00:13]} 9. d5 {[%emt 0:00:17] White is slightly better.} Nb4 {[%emt 0:00:02]} 10. Nd4 {[%emt 0:00:01] Against Nc2} Be4 {[%emt 0:00:26]} 11. Nc3 {[%emt 0:00:09]} Bxg2 {[%emt 0:00:02]} 12. Kxg2 {[%emt 0:00:01]} Qd7 {[%emt 0:00:39]} 13. a3 {[%emt 0:00:11]} Na6 {[%emt 0:00:01]} 14. Qc2 {[%emt 0:00:04]} e5 {[%emt 0:00:05] [#]} 15. Nf3 $146 {[%emt 0:00:05]} ({Predecessor:} 15. dxe6 fxe6 16. Rad1 e5 17. Nf3 Qc6 18. Nd5 Nxd5 19. Rxd5 Nc5 20. Kg1 Qb6 21. Rb1 Qxb3 22. Qxb3 Nxb3 23. Bxe5 {½-½ (29) Seel,C (2469)-Markus,R (2644) Germany 2017}) 15... Ng4 {[%emt 0:00:05]} 16. h3 {[%emt 0:00:21]} Nh6 {[%emt 0:00:05]} 17. Rab1 {[%emt 0:00:06]} Qe7 {[%emt 0:00:06]} 18. Bc1 {[%emt 0:00:05]} Rae8 {[%emt 0:00:26]} 19. e4 {[%emt 0:00:15]} f5 {[%emt 0:00:06]} 20. Bxh6 {[%emt 0:00:07]} (20. Ng5 $5 {[%cal Rg5e6]}) 20... Bxh6 {[%emt 0:00:01]} 21. b4 {[%emt 0:00:01]} axb4 {[%emt 0:00:03]} 22. axb4 {[%emt 0:00:01]} Rf7 {[%emt 0:00:06]} 23. exf5 {[%emt 0:00:38]} gxf5 {[%emt 0:00:03]} 24. Rfe1 {[%emt 0:00:01]} Qf6 {[%emt 0:00:07]} 25. Nd4 {[%emt 0:00:03]} Kh8 {[%emt 0:00:23]} 26. Ne6 {[%emt 0:00:08]} c6 {[%emt 0:00:01]} 27. b5 $1 {[%emt 0:00:06]} Nc7 {[%emt 0:00:26]} 28. Nxc7 {[%emt 0:00:02] White is much more active.} (28. bxc6 {looks sharper.} bxc6 29. Nxc7 Rxc7 30. dxc6 Qf7 31. Qd3) 28... Rxc7 {[%emt 0:00:01]} 29. bxc6 {[%emt 0:00:01]} bxc6 {[%emt 0:00:02]} 30. dxc6 {[%emt 0:00:02] Strongly threatening Nd5.} Rxc6 {[%emt 0:00:02] Black cannot hold the game after this.} ({Black should try} 30... Qf7 $1 $14) 31. Rb7 $1 $18 {[%emt 0:00:00] aiming for Ra1.} ({Less strong is} 31. Nd5 Qf7 32. Qa4 Rec8 $14) 31... Qe6 {[%emt 0:00:11] [#]} (31... Rxc4 $2 32. Nd5 Qg7 33. Qb3 $18) 32. Ra1 $1 {[%emt 0:00:08] Threatens to win with Raa7.} Bg5 $2 {[%emt 0:00:31]} (32... Rxc4 $2 33. Raa7 $18) (32... Rg8 {is tougher.}) 33. Raa7 {[%emt 0:00:06]} Re7 {[%emt 0:00:01]} 34. Qb3 $2 {[%emt 0:00:20] Weighted Error Value: White=0.04 (flawless) /Black=0.23 (precise)} (34. Rxe7 $18 {and the rest is easy.} Bxe7 35. Qb3 Rxc4 {[#]} 36. Rxe7 $1 {[%mdl 512]} Qxe7 37. Qxc4) 1-0